[Event "16th Serbian Championship 2022"]
[Site "Bajina Basta"]
[Date "2022.12.12"]
[Round "7.3"]
[White "Ivanisevic, Ivan"]
[Black "Ivic, Velimir"]
[Result "1-0"]
[ECO "D00"]
[WhiteElo "2533"]
[BlackElo "2560"]
[Annotator "TA"]
[PlyCount "139"]
[EventDate "2022.12.06"]
[EventType "tourn"]
[EventCountry "SRB"]
[SourceTitle "playchess.com"]
[Source "ChessBase"]
[SourceQuality "1"]
[TimeControl "40/5400+30:1800+30"]

{[%evp 9,139,-17,-9,-16,-6,-29,0,0,0,0,0,0,8,12,9,-6,0,0,0,-41,-46,-49,-49,-49,-53,-54,-36,-83,0,0,124,128,128,128,341,158,166,165,160,162,198,139,164,148,245,257,247,120,116,116,142,135,131,137,131,117,117,100,117,109,110,91,125,138,133,136,160,123,115,115,130,124,279,196,196,196,196,196,196,196,196,196,196,196,315,315,315,315,345,337,367,310,315,315,303,288,315,305,295,295,295,291,315,315,315,315,306,299,441,433,414,401,453,423,644,636,5724,5241,6202,5892,5866,635,632,631,620,592,530,530,29956,29960,4610,4590]} 1. d4 {[%emt 0:00:27]} Nf6 {[%emt 0:00:12]} 2. Bg5 {[%emt 0:00:06]} d5 {[%emt 0:00:11][%cal Bd7d5,Bd5e4][%mdl 32]} 3. Nd2 {[%emt 0:00:06]} c5 {[%emt 0:02:00]} 4. dxc5 {[%emt 0:00:08]} e6 {[%emt 0:01:05]} 5. Nb3 {[%emt 0:02:01]} Nbd7 {[%emt 0:09:23]} 6. e4 {[%emt 0:00:21] D00: 1 d4 d5: Unusual lines.} dxe4 {[%emt 0:02:16]} 7. Ne2 {[%emt 0:00:22]} h6 {[%emt 0:09:12] [#]} 8. Bh4 $146 {[%emt 0:00:20] The position is equal.} ({Predecessor:} 8. Bxf6 gxf6 9. Qd4 Nxc5 10. Qxd8+ Kxd8 11. O-O-O+ Nd7 12. Nf4 Kc7 13. g4 Ne5 14. h3 {0-1 (46) Jobava,B (2707)-Nepomniachtchi,I (2732) Leuven 2017}) 8... Be7 {[%emt 0:02:11]} 9. Nc3 {[%emt 0:02:18]} O-O {[%emt 0:09:02]} 10. Be2 {[%emt 0:03:10]} e3 {[%emt 0:08:35]} 11. fxe3 {[%emt 0:03:03]} Nxc5 {[%emt 0:05:56]} 12. Qd4 {[%emt 0:07:17]} Qc7 {[%emt 0:06:38]} 13. O-O {[%emt 0:21:44][%cal Rf1f6]} e5 {[%emt 0:04:34]} 14. Qd1 {[%emt 0:06:19]} Rd8 {[%emt 0:05:49]} 15. Qe1 {[%emt 0:01:12]} Nce4 $1 {[%emt 0:02:21]} 16. Nxe4 {[%emt 0:05:08]} Nxe4 {[%emt 0:00:05]} 17. Bd3 {[%emt 0:00:22]} Nd6 {[%emt 0:00:43]} 18. Qg3 {[%emt 0:11:14]} (18. Bxe7 $15 Qxe7 19. Qg3) 18... g5 {[%emt 0:02:34]} (18... Bxh4 $17 19. Qxh4 Qb6) 19. Qxe5 $11 {[%emt 0:05:12][%cal Od3h7]} f6 {[%emt 0:03:08]} (19... gxh4 $11 {remains equal.} 20. Rxf7 (20. Bh7+ Kxh7 $11) 20... Kxf7 21. Rf1+ Kg8 22. Qd5+ Kh8 23. Qe5+ Kg8 24. Qd5+ Kh8 25. Qe5+ Kg8) 20. Qd5+ $16 {[%emt 0:03:47]} Nf7 {[%emt 0:05:32]} 21. Bg3 $1 {[%emt 0:00:06] White is more active.} Bd6 $2 {[%emt 0:00:12]} (21... Rxd5 $16 {was necessary.} 22. Bxc7 Rd7) 22. Bxd6 {[%emt 0:03:33]} (22. Rxf6 Bxg3 23. Rg6+ Kf8 $16) (22. Qe4 $18 {is the precise move to win.} f5 23. Rxf5) 22... Rxd6 {[%emt 0:03:43]} 23. Qe4 {[%emt 0:03:34]} Ne5 {[%emt 0:04:33]} 24. Nd4 {[%emt 0:00:16][%cal Bb3d4,Bd4b5,Bb5d6,Bd6e4][%mdl 32]} Qe7 {[%emt 0:00:27]} 25. Bc4+ {[%emt 0:05:53]} (25. c4 $18) 25... Kf8 {[%emt 0:01:48]} 26. Bb3 {[%emt 0:01:36]} Ng4 {[%emt 0:03:21]} (26... a5 $16 27. Nb5 Rd2) 27. Qg6 $18 {[%emt 0:00:37][%csl Gb3][%cal Rg6g8]} (27. Qxe7+ $6 Kxe7 28. Nb5 Rc6) 27... Qg7 {[%emt 0:01:13] Inhibits Qg8+.} 28. Qxg7+ {[%emt 0:02:23] Really sharp!} (28. Qd3 $1 $18 {Hoping for h3.} Bd7 29. Ne6+ $1 {[%mdl 512]} Rxe6 30. Bxe6 Bxe6 31. h3) 28... Kxg7 $16 {[%emt 0:00:04]} 29. Nb5 {[%emt 0:01:07]} Rc6 {[%emt 0:03:05]} 30. h3 {[%emt 0:01:38]} Ne5 {[%emt 0:02:46]} 31. Rad1 {[%emt 0:00:25] And now Rd8 would win.} Bd7 {[%emt 0:00:25]} 32. Nd6 {[%emt 0:00:20]} Rc7 {[%emt 0:00:31]} 33. Rd4 {[%emt 0:01:00]} a5 {[%emt 0:01:00]} 34. a4 {[%emt 0:00:56]} Rf8 {[%emt 0:02:19]} 35. Ne4 {[%emt 0:04:08]} Rc6 {[%emt 0:00:33]} 36. Rf2 {[%emt 0:01:26][%cal Bf1f2,Bf2d2,Bd2d8][%mdl 32]} Bc8 {[%emt 0:00:20]} 37. Rfd2 {[%emt 0:00:17]} Re8 {[%emt 0:00:38]} 38. Rd8 {[%emt 0:00:52]} Rxd8 {[%emt 0:00:19]} 39. Rxd8 {[%emt 0:00:05]} Bf5 {[%emt 0:00:11]} 40. Nc3 {[%emt 0:00:58]} Nc4 $2 {[%emt 0:01:01]} (40... Be6 $16) 41. e4 {[%emt 0:31:19]} Be6 {[%emt 0:04:31]} 42. Nb5 {[%emt 0:00:00] Threatens to win with Nd4.} Nxb2 {[%emt 0:03:38]} 43. Nd4 {[%emt 0:00:00][%csl LRc6,LRe6]} Bxb3 {[%emt 0:00:09]} 44. Nxc6 {[%emt 0:00:00]} (44. cxb3 Rc1+ 45. Kh2 Rd1 $16) 44... Bxc2 $18 {[%emt 0:00:45][%mdl 4096] Endgame KRN-KBN} 45. Rd7+ {[%emt 0:00:00]} Kf8 {[%emt 0:00:39]} 46. Rxb7 {[%emt 0:00:00]} (46. Nxa5 Bxe4 47. Rd4 (47. Nxb7 Nxa4 48. Kf2 Bb1 $16) 47... f5) 46... Nxa4 {[%emt 0:02:31]} (46... Bxe4 {might work better.} 47. Rxb2 Bxc6) 47. e5 {[%emt 0:00:00]} ({Resist} 47. Nxa5 Bxe4 48. Rb4 Nc3 $18) 47... Be4 {[%emt 0:04:52]} 48. Rc7 {[%emt 0:00:00]} fxe5 {[%emt 0:02:25]} 49. Nxe5 {[%emt 0:00:00]} ({Don't do} 49. Nxa5 Nb2 50. Nb3 Bf5 $18) 49... Nb6 {[%emt 0:08:32] Prevents Rc4.} 50. Ra7 {[%emt 0:00:00]} Nd5 {[%emt 0:00:58]} 51. Nd7+ {[%emt 0:00:00]} (51. Rxa5 Nf4 52. Nc4 Kg8 $18) 51... Ke8 {[%emt 0:00:34]} 52. Nc5 {[%emt 0:00:00]} Bf5 {[%emt 0:01:41]} 53. Nb7 {[%emt 0:00:00]} Be6 {[%emt 0:00:46]} 54. Nd6+ {[%emt 0:00:00]} ({Don't play} 54. Nxa5 Nf4 55. Rh7 h5 $18) 54... Kf8 {[%emt 0:00:13]} 55. Rxa5 {[%emt 0:00:00]} Ke7 {[%emt 0:01:01]} 56. Ne4 {[%emt 0:00:00]} Nf4 {[%emt 0:00:17]} 57. Ra7+ {[%emt 0:00:00]} Kf8 {[%emt 0:00:04]} 58. Nf6 {[%emt 0:00:26]} Bf7 {[%emt 0:01:24]} (58... Ng6 $142 59. Kf2 Bf5) 59. Kh2 {[%emt 0:02:11]} Be6 {[%emt 0:00:38]} 60. Kg3 {[%emt 0:02:35]} Bf7 {[%emt 0:02:08]} 61. h4 {[%emt 0:01:06] aiming for hxg5.} Ne6 {[%emt 0:01:34]} (61... Ne2+ $142 62. Kf2 Nf4 63. hxg5 hxg5 64. Nh7+ Ke8 65. Nxg5 Bg6) 62. Ng4 {[%emt 0:00:35]} h5 {[%emt 0:00:25]} 63. Ne5 {[%emt 0:01:14]} gxh4+ {[%emt 0:01:28]} 64. Kxh4 {[%emt 0:00:17]} Be8 {[%emt 0:00:26]} 65. g3 {[%emt 0:00:24]} (65. Nd7+ $142 Bxd7 66. Rxd7) 65... Nc5 {[%emt 0:00:26]} 66. Kg5 {[%emt 0:01:08] Black must now prevent Ng6+.} Ne4+ {[%emt 0:00:04] [#]} 67. Kf4 $1 {[%emt 0:00:06]} Nc3 {[%emt 0:00:10]} 68. Kf5 {[%emt 0:01:19]} Ne2 {[%emt 0:00:15]} 69. Ke6 {[%emt 0:01:33]} Nxg3 {[%emt 0:01:52]} 70. Ra8 {[%emt 0:05:30] Weighted Error Value: White=0.13 (very precise) /Black=0.28 (precise)} 1-0

[Event "16th Serbian Championship 2022"]
[Site "Bajina Basta"]
[Date "2022.12.12"]
[Round "7.4"]
[White "Indjic, Aleksandar"]
[Black "Djordjevic, Vuk"]
[Result "1-0"]
[ECO "E27"]
[WhiteElo "2631"]
[BlackElo "2394"]
[Annotator "TA"]
[PlyCount "67"]
[EventDate "2022.12.06"]
[EventType "tourn"]
[EventCountry "SRB"]
[SourceTitle "playchess.com"]
[Source "ChessBase"]
[SourceQuality "1"]
[TimeControl "40/5400+30:1800+30"]

{[%evp 13,66,-6,55,-2,12,-17,-8,-1,-27,-18,-3,-27,0,0,0,-74,-78,-98,-58,-51,-53,-65,-53,-52,-64,-61,-60,-58,-18,-29,-38,-20,0,0,0,0,0,0,0,0,0,0,0,0,0,0,792,770,29991,29992,29997,29998,29998,29999,29999]} 1. d4 {[%emt 0:01:49]} Nf6 {[%emt 0:01:56]} 2. c4 {[%emt 0:00:09]} e6 {[%emt 0:00:33]} 3. Nc3 {[%emt 0:00:07]} Bb4 {[%emt 0:00:15]} 4. f3 {[%emt 0:00:06]} d5 {[%emt 0:03:24]} 5. a3 {[%emt 0:00:19]} Bxc3+ {[%emt 0:05:16]} 6. bxc3 {[%emt 0:00:17]} O-O {[%emt 0:01:22]} 7. cxd5 {[%emt 0:00:08]} Nxd5 {[%emt 0:00:17]} (7... exd5 $11 8. e3 Bf5) 8. Bd2 $5 {[%emt 0:03:40][%mdl 4] Leaves trodden paths. E27: Nimzo-Indian: Sämisch: 5...0-0 6 f3.} (8. e4 $14 Ne7 9. Bd3) 8... Nb6 {[%emt 0:09:14][%cal Oe6e5]} 9. e4 {[%emt 0:02:06] Against e5} c5 {[%emt 0:12:16]} 10. dxc5 {[%emt 0:01:20] The position is equal.} N6d7 {[%emt 0:00:12]} 11. Be3 {[%emt 0:00:13]} Qa5 {[%emt 0:02:05][%csl LRc3,LRc5]} 12. Qb3 {[%emt 0:00:11]} (12. Qb1 {keeps more tension.} Qxc3+ 13. Kf2 Nxc5 14. Qc1) 12... Na6 {[%emt 0:04:37]} (12... Qc7 $5 {[%cal Rd7c5]}) 13. Bxa6 {[%emt 0:02:02]} Qxa6 {[%emt 0:00:04] [#]} 14. Bd4 $146 {[%emt 0:03:36] Against Ne5} (14. Ne2 $11) ({Predecessor:} 14. a4 Ne5 15. Qb5 Qxb5 16. axb5 Bd7 17. Rb1 Rfc8 18. Ne2 Nd3+ 19. Kd2 Nxc5 20. c4 {½-½ (40) Fedoseev,V (2674)-Karjakin,S (2752) Moscow 2020}) 14... Qc6 $17 {[%emt 0:04:20]} 15. Ne2 {[%emt 0:01:34]} Nxc5 {[%emt 0:02:50]} 16. Bxc5 {[%emt 0:00:12]} Qxc5 {[%emt 0:00:06]} 17. Qb4 {[%emt 0:00:04]} Qc7 {[%emt 0:04:56]} (17... Qg5 $5 {[%cal Rg5g2]} 18. Kf2 b6 $15) 18. Rd1 {[%emt 0:01:34]} b6 {[%emt 0:09:35]} 19. Qd6 {[%emt 0:00:07]} Qc4 {[%emt 0:00:18]} 20. Rd4 {[%emt 0:02:05]} Qb5 {[%emt 0:05:54]} (20... Qa2 $5 {[%cal Rc8a6]}) 21. Kf2 {[%emt 0:08:02]} Ba6 {[%emt 0:03:38]} 22. c4 {[%emt 0:00:22]} Qh5 {[%emt 0:01:47]} 23. e5 {[%emt 1:11:57]} Rac8 {[%emt 0:04:55]} 24. Ng3 {[%emt 0:00:00][%cal Be2g3,Bg3h5,Bh5f6][%mdl 32]} Qg6 {[%emt 0:08:12]} 25. Rc1 {[%emt 0:00:00] Prevents Qc2+.} Qg5 {[%emt 0:00:52] Prevents Qe7.} 26. Rcd1 {[%emt 0:00:00][%cal Bc1d1,Bd1d4,Bd4d8][%mdl 32]} Rxc4 {[%emt 0:04:25]} 27. h4 {[%emt 0:00:00]} Rxd4 {[%emt 0:04:18]} 28. Rxd4 {[%emt 0:00:00][%mdl 64]} ({But not} 28. hxg5 Rxd6 29. exd6 Rd8 $17) 28... Qc1 {[%emt 0:01:47]} 29. Nh5 {[%emt 0:00:00][%cal Oh5f6] Black must now prevent Nf6+!} Qh6 {[%emt 0:00:28][%mdl 8192] [#] Prevents Nf6+.} (29... Qc2+ $11 30. Kg1 Qc8) 30. Qe7 $1 $18 {[%emt 0:00:00] White wants to mate with Rd8.} g6 {[%emt 0:03:32]} (30... f5 31. exf6) 31. Nf6+ {[%emt 0:00:00] White mates.} ({And not} 31. Qxa7 Qxh5 32. Qxa6 Qxe5 33. Qxb6 Rc8 34. Rd8+ Rxd8 35. Qxd8+ Kg7 $11) 31... Kg7 {[%emt 0:00:20] [#]} 32. Qxf8+ $3 {[%emt 0:00:00][%mdl 576]} Kxf8 {[%emt 0:00:05]} 33. Rd8+ {[%emt 0:00:00]} Ke7 {[%emt 0:00:06]} 34. Re8# {[%emt 0:00:00] Weighted Error Value: White=0.12 (very precise) /Black=0.27 (precise)} 1-0

[Event "16th Serbian Championship 2022"]
[Site "Bajina Basta"]
[Date "2022.12.12"]
[Round "7.5"]
[White "Radovanovic, Nikola"]
[Black "Kovacevic, Aleksandar"]
[Result "0-1"]
[ECO "B51"]
[WhiteElo "2414"]
[BlackElo "2470"]
[Annotator "TA"]
[PlyCount "72"]
[EventDate "2022.12.06"]
[EventType "tourn"]
[EventCountry "SRB"]
[SourceTitle "playchess.com"]
[Source "ChessBase"]
[SourceQuality "1"]
[TimeControl "40/5400+30:1800+30"]

{[%evp 9,72,2,11,0,0,0,43,42,46,35,39,8,15,7,4,0,35,1,25,0,8,0,93,36,35,37,43,26,38,-65,-43,-98,-93,-95,-100,-167,-147,-137,-129,-139,-116,-144,-95,-123,-141,-127,-145,-211,-221,-415,-389,-505,-503,-494,-483,-434,-340,-479,-460,-1501,-1415,-29984,-29985,-29984,-1617]} 1. e4 {[%emt 0:00:40]} c5 {[%emt 0:00:24]} 2. Nf3 {[%emt 0:00:10]} d6 {[%emt 0:00:15]} 3. Bb5+ {[%emt 0:00:15]} Nd7 {[%emt 0:02:07]} 4. d4 {[%emt 0:00:17]} cxd4 {[%emt 0:00:41]} 5. Qxd4 {[%emt 0:00:07]} a6 {[%emt 0:01:39]} 6. Be2 {[%emt 0:00:08] B51: Sicilian: Moscow Variation (3 Bb5+) without 3...Bd7.} Ngf6 {[%emt 0:00:56]} 7. O-O {[%emt 0:00:08]} e6 {[%emt 0:02:30]} (7... e5 $5 {[%cal Re5d4]} 8. Qe3 Be7 $11) 8. c4 {[%emt 0:00:33] White is slightly better.} Be7 {[%emt 0:00:29]} 9. Nc3 {[%emt 0:00:53]} O-O {[%emt 0:01:09]} 10. h3 {[%emt 0:00:44] [#]} b6 $146 {[%emt 0:03:18]} ({Predecessor:} 10... Qc7 11. Be3 b6 12. Rac1 Bb7 13. b4 Rac8 14. a3 Qb8 15. Nd2 Qa8 16. Qd3 Ne5 {1-0 (66) Efroimski,M (2429)-Dzagnidze,N (2531) Warsaw 2021}) 11. Rb1 {[%emt 0:08:38]} Bb7 {[%emt 0:00:59]} 12. b4 {[%emt 0:00:34]} Qc7 {[%emt 0:05:35]} 13. Be3 {[%emt 0:04:25]} Rac8 {[%emt 0:03:18][%cal Ob6b5]} 14. Rfc1 {[%emt 0:15:52]} Rfd8 {[%emt 0:00:41]} 15. Nd2 {[%emt 0:03:38]} Nc5 {[%emt 0:13:20] [#]} 16. Bg5 {[%emt 0:04:42]} (16. bxc5 $2 {too greedy.} dxc5 $19) (16. Nd5 $1 $16 {[%cal Rd5c7]} exd5 17. cxd5 (17. bxc5 $2 {perishes.} dxc5 18. Qb2 d4 $19)) 16... e5 $14 {[%emt 0:05:32]} 17. Qe3 {[%emt 0:00:38]} Ne6 {[%emt 0:00:26] Threatens to win with ...Nxg5.} 18. Bxf6 {[%emt 0:07:24]} Bxf6 {[%emt 0:00:06]} 19. Nd5 {[%emt 0:00:37]} (19. h4 $14) 19... Bxd5 $15 {[%emt 0:01:50]} 20. exd5 {[%emt 0:15:59] Black converts the advantage convincingly.} (20. cxd5 $15 Qxc1+ 21. Rxc1 Rxc1+ 22. Bf1) 20... Bg5 $36 {[%emt 0:00:53][%mdl 2048] Black has strong initiative.} 21. Qc3 {[%emt 0:00:25] [#]} Nf4 {[%emt 0:15:41]} 22. Qf3 {[%emt 0:08:12] [#]} (22. Bf1 $17) 22... Nxg2 $1 {[%emt 0:07:40][%mdl 512]} 23. Kxg2 {[%emt 0:01:41] Hoping for Rd1.} Bxd2 {[%emt 0:00:06]} 24. Rc2 {[%emt 0:00:03]} Bf4 {[%emt 0:00:12]} 25. c5 {[%emt 0:00:41]} dxc5 {[%emt 0:04:31]} ({Black should play} 25... bxc5 26. Bxa6 Rb8) 26. bxc5 {[%emt 0:00:06]} bxc5 {[%emt 0:01:48]} 27. Bxa6 {[%emt 0:00:05]} Qd6 {[%emt 0:03:05][%csl LRa6,LRd5]} 28. Qd3 {[%emt 0:09:24]} (28. Bxc8 $17 Qg6+ 29. Bg4 Qxc2 30. Rb6) 28... e4 $1 $19 {[%emt 0:02:32]} (28... Qxd5+ $2 29. Qxd5 Rxd5 30. Bxc8 $18) 29. Qc4 {[%emt 0:00:56]} (29. Qe2 {keeps fighting.} Ra8 30. Bc4) 29... Qg6+ {[%emt 0:01:25]} 30. Kh1 {[%emt 0:00:40]} Rb8 {[%emt 0:02:26]} 31. Rxb8 {[%emt 0:03:00]} Bxb8 {[%emt 0:07:31]} (31... Rxb8 $2 {loses.} 32. Bb5 $19) 32. Rc3 {[%emt 0:00:29]} Qf6 {[%emt 0:05:12] ...Be5 is the strong threat.} 33. Kg2 {[%emt 0:01:59]} (33. Re3 $142 Qxf2 34. Qe2 Qxe2 35. Rxe2) 33... Be5 {[%emt 0:00:16]} 34. Re3 {[%emt 0:01:18]} (34. Rb3 $142 Bd4 35. Qe2) 34... Bd4 {[%emt 0:00:24]} 35. Re2 {[%emt 0:00:04]} Qf3+ {[%emt 0:00:28]} 36. Kh2 {[%emt 0:00:27]} Bxf2 {[%emt 0:01:25] Weighted Error Value: White=0.73/Black=0.15 (very precise)} (36... Rd6 $142 37. Bc8 Rg6 38. Bg4 Be5+ 39. Kg1 Qxh3 40. f3 Qg3+ 41. Kf1 Rh6 42. Rf2 Bd4 43. Qxd4 cxd4 44. Ke2 Rb6 45. Rf1 Rb2+ 46. Kd1 Qg2 47. Rf2 Rxf2 48. fxe4 Qh1#) 0-1

[Event "16th Serbian Championship 2022"]
[Site "Bajina Basta"]
[Date "2022.12.13"]
[Round "8.1"]
[White "Martic, Ivan"]
[Black "Kovacevic, Aleksandar"]
[Result "0-1"]
[ECO "E51"]
[WhiteElo "2270"]
[BlackElo "2470"]
[Annotator "TA"]
[PlyCount "79"]
[EventDate "2022.12.06"]
[EventType "tourn"]
[EventCountry "SRB"]
[SourceTitle "playchess.com"]
[Source "ChessBase"]
[SourceQuality "1"]
[TimeControl "40/5400+30:1800+30"]

{[%evp 13,79,0,0,0,0,-3,0,-36,-8,-8,-6,-29,-22,-24,-16,-12,-13,-10,-14,-32,-32,-113,-116,-94,-94,-112,-94,-127,-126,-128,-120,-255,-233,-222,-169,-200,-197,-193,-148,-148,-156,-181,-139,-258,-250,-282,-282,-368,-368,-364,-364,-331,-283,-283,-282,-282,-281,-280,-280,-280,-262,-280,-279,-278,-278,-29987,-29988,-29988]} 1. d4 {[%emt 0:00:04]} Nf6 {[%emt 0:00:38]} 2. c4 {[%emt 0:00:18]} e6 {[%emt 0:00:13]} 3. Nf3 {[%emt 0:00:14]} d5 {[%emt 0:02:58]} 4. Nc3 {[%emt 0:00:20]} Bb4 {[%emt 0:00:09]} 5. e3 {[%emt 0:00:14]} O-O {[%emt 0:01:10]} 6. Bd2 {[%emt 0:00:16]} b6 {[%emt 0:03:11]} 7. cxd5 {[%emt 0:01:06]} exd5 {[%emt 0:00:20]} 8. Bd3 {[%emt 0:00:07] E51: Nimzo-Indian: Rubinstein: 4...0-0 5 Nf3 d5.} Bd6 {[%emt 0:00:49]} 9. Rc1 {[%emt 0:01:02]} c5 {[%emt 0:01:13]} 10. O-O {[%emt 0:07:17] The position is equal.} Bb7 {[%emt 0:06:39] Prevents e4.} 11. Ne5 {[%emt 0:03:31]} Nc6 {[%emt 0:00:25]} 12. f4 {[%emt 0:01:20]} cxd4 {[%emt 0:01:02]} 13. Nxc6 {[%emt 0:00:50]} Bxc6 {[%emt 0:00:25]} 14. exd4 {[%emt 0:00:08]} Qd7 {[%emt 0:05:43]} 15. f5 {[%emt 0:17:33]} Rfe8 {[%emt 0:07:43] [#]} 16. Kh1 $146 {[%emt 0:03:28]} (16. Bg5 $5 {[%cal Rg5f6]}) ({Predecessor:} 16. Bf4 Rac8 17. Qd2 Ne4 18. Bxe4 dxe4 19. Bxd6 e3 20. Qd3 Qxd6 21. Rfe1 Qf4 22. Re2 {½-½ (59) Iljin,T (2314)-Kotsur,P (2517) Cheliabinsk 2021}) 16... b5 {[%emt 0:05:33][%cal Bb6b5,Bb5b4][%mdl 32]} 17. Bf4 {[%emt 0:13:55]} (17. Bg5 $15) 17... Bxf4 $17 {[%emt 0:01:42]} 18. Rxf4 {[%emt 0:00:08]} b4 {[%emt 0:01:37]} 19. Ne2 {[%emt 0:00:57]} Bb5 {[%emt 0:00:26]} 20. Bxb5 {[%emt 0:16:19]} Qxb5 {[%emt 0:00:05]} 21. Ng3 {[%emt 0:00:09]} Rac8 {[%emt 0:02:06]} 22. Rf1 {[%emt 0:03:23] Loses the game.} (22. Ra1 $17 {was necessary.}) 22... Rxc1 $19 {[%emt 0:21:29]} 23. Qxc1 {[%emt 0:00:23]} Qa6 {[%emt 0:00:09]} 24. a3 {[%emt 0:05:23]} bxa3 {[%emt 0:03:55]} 25. bxa3 {[%emt 0:00:08]} Qd3 {[%emt 0:00:15]} 26. Rd1 {[%emt 0:05:36]} Qb3 {[%emt 0:00:09] Black is much more active.} 27. Rf1 {[%emt 0:01:02]} h6 {[%emt 0:03:08][%cal Bh7h6,Bh6h5][%mdl 32]} 28. Qc5 {[%emt 0:04:06]} (28. Rf3 $17 Qa4 29. Qd2) 28... h5 {[%emt 0:01:00] Threatens to win with ...h4.} 29. Qc6 {[%emt 0:04:42][%cal Og3h5]} Qd3 {[%emt 0:03:54] Hoping for ...h4.} ({Not} 29... Qxa3 {[#]} 30. Nxh5 $1 {[%mdl 512]} Qe7 31. Nxf6+ gxf6 32. h3 $14 (32. Qxd5 Qb4 $11)) 30. Rc1 {[%emt 0:01:06][%cal Og3h5]} Rb8 {[%emt 0:01:47] And now ...Rb1 would win.} ({Weaker is} 30... Qxd4 31. Nxh5 Re3 32. Nxf6+ gxf6 33. Qd6 $17) 31. Qc7 {[%emt 0:03:36]} Rb1 {[%emt 0:02:00] ( -> ...Qd1+)} 32. Qf4 {[%emt 0:00:52]} Rxc1+ {[%emt 0:07:32]} 33. Qxc1 {[%emt 0:00:07]} Qxd4 {[%emt 0:00:08][%mdl 4096] Endgame KQN-KQN} 34. Ne2 {[%emt 0:04:12]} Qd3 {[%emt 0:01:21]} 35. Ng1 {[%emt 0:00:33]} Qxf5 {[%emt 0:08:37]} 36. Nf3 {[%emt 0:00:12]} Qd7 {[%emt 0:03:56]} 37. Qf4 {[%emt 0:00:34]} Ne4 {[%emt 0:01:08]} 38. h3 {[%emt 0:01:20]} Qd6 {[%emt 0:00:12]} 39. Qc1 {[%emt 0:00:48] [#]} (39. Qe3 $19) 39... Ng3+ {[%emt 0:00:08]} 40. Kg1 {[%emt 0:03:11] Weighted Error Value: White=0.46/Black=0.07 (flawless)} 0-1

[Event "16th Serbian Championship 2022"]
[Site "Bajina Basta"]
[Date "2022.12.13"]
[Round "8.2"]
[White "Djordjevic, Vuk"]
[Black "Radovanovic, Nikola"]
[Result "0-1"]
[ECO "D00"]
[WhiteElo "2394"]
[BlackElo "2414"]
[Annotator "TA"]
[PlyCount "66"]
[EventDate "2022.12.06"]
[EventType "tourn"]
[EventCountry "SRB"]
[SourceTitle "playchess.com"]
[Source "ChessBase"]
[SourceQuality "1"]
[TimeControl "40/5400+30:1800+30"]

{[%evp 9,66,-18,2,-19,0,-9,-14,-12,0,-22,-11,-19,-18,-41,-30,-60,-70,-86,-96,-90,-78,-106,-71,-70,-57,-69,-65,-74,-51,-96,-96,-96,-96,-97,-102,-191,-194,-185,-160,-126,-66,-52,-48,-913,-913,-744,-658,-1184,-1182,-1146,-1159,-985,-931,-1204,-1191,-1114,-1093,-1052,-993]} 1. d4 {[%emt 0:00:21]} Nf6 {[%emt 0:00:07]} 2. Bg5 {[%emt 0:00:10]} g6 {[%emt 0:00:06]} 3. Bxf6 {[%emt 0:01:09]} exf6 {[%emt 0:00:01]} 4. e3 {[%emt 0:00:38]} d5 {[%emt 0:00:09]} 5. g3 {[%emt 0:03:30]} c6 {[%emt 0:00:24]} 6. Bg2 {[%emt 0:01:02] D00: 1 d4 d5: Unusual lines.} Bd6 {[%emt 0:00:39]} 7. Ne2 {[%emt 0:00:23]} h5 {[%emt 0:00:23]} 8. h4 {[%emt 0:01:36] The position is equal.} Nd7 {[%emt 0:01:04]} 9. Qd3 {[%emt 0:07:39] [#]} Nb6 $146 {[%emt 0:00:48]} ({Predecessor:} 9... f5 10. Nd2 Nf6 11. b3 Ne4 12. c3 O-O 13. Kf1 a5 14. Bf3 b6 15. c4 Bb4 16. Bxe4 fxe4 {0-1 (53) Doric,D (2484)-Chigaev,M (2588) Chess.com INT 2020}) 10. Nd2 {[%emt 0:01:20]} Kf8 {[%emt 0:00:55]} 11. b3 {[%emt 0:14:44]} Kg7 {[%emt 0:02:21]} 12. a3 {[%emt 0:10:00]} Bf5 $1 {[%emt 0:09:40]} 13. e4 {[%emt 0:02:52]} dxe4 {[%emt 0:00:57]} 14. Bxe4 {[%emt 0:00:54]} Bg4 {[%emt 0:01:42]} 15. O-O {[%emt 0:05:46]} Qd7 {[%emt 0:06:29]} 16. Rfe1 {[%emt 0:06:04]} Rae8 {[%emt 0:04:39]} 17. Bf3 {[%emt 0:08:28]} Re7 {[%emt 0:10:39]} 18. Bxg4 {[%emt 0:08:13]} hxg4 {[%emt 0:05:29]} 19. Ne4 {[%emt 0:02:19] [#]} Rhe8 $1 {[%emt 0:03:53]} 20. Nxd6 {[%emt 0:02:28]} Qxd6 {[%emt 0:00:01]} 21. Kf1 {[%emt 0:04:00]} Nd5 {[%emt 0:13:35][%cal Od5e3] Threatens to win with ...Ne3+! Black has more active pieces.} (21... Qd5 {simplifies} 22. Ng1 Rxe1+ 23. Rxe1 Rxe1+ 24. Kxe1 Qa5+) 22. c4 {[%emt 0:04:04] [#]} (22. Qd2 $17 {was necessary.}) 22... Ne3+ $1 $19 {[%emt 0:02:25][%mdl 512]} 23. fxe3 {[%emt 0:04:37]} (23. Kg1 Nf5) 23... Rxe3 {[%emt 0:00:26]} 24. Qd2 {[%emt 0:03:45] aiming for Nf4.} (24. Qb1 $2 Rf3+ 25. Kg1 Ree3 $19) 24... Rf3+ {[%emt 0:00:36]} ({Better is} 24... Rxb3 $17 {[%cal Oe8e3] And now ...Ree3! would win.} 25. Kg2 Ree3) 25. Kg1 $15 {[%emt 0:01:36]} Ree3 $1 {[%emt 0:02:14]} 26. Rab1 $2 {[%emt 0:01:38][%mdl 8192] White does not recover from this.} (26. Kh1 $15) 26... Rxg3+ $19 {[%emt 0:02:36] Black is clearly winning.} ({Weaker is} 26... Rxb3 27. Rxb3 Rxb3 28. a4 $14) 27. Nxg3 {[%emt 0:00:39]} Qxg3+ {[%emt 0:00:08]} 28. Kf1 {[%emt 0:01:13]} Qf4+ {[%emt 0:04:54]} (28... Rxb3 29. Rxb3 Qxb3 30. Qe3 Qxc4+ 31. Kf2 $16) 29. Qf2 {[%emt 0:02:46]} Rf3 {[%emt 0:00:06]} ({Not} 29... Qxd4 30. Qxe3 Qxe3 31. Rxe3 $18) 30. Rb2 {[%emt 0:00:17]} Qxd4 {[%emt 0:00:23][%mdl 64] Pin} 31. Kg2 {[%emt 0:00:25]} Rxf2+ {[%emt 0:00:29]} 32. Rxf2 {[%emt 0:00:03]} f5 {[%emt 0:00:24][%cal Bf6f5,Bf5f4][%mdl 32]} 33. h5 {[%emt 0:00:52]} f4 {[%emt 0:00:41] Weighted Error Value: White=0.76/Black=0.07 (flawless)} 0-1